[Event "Live Chess"]
[Site "Chess.com"]
[Date "2023.05.21"]
[Round "-"]
[White "BearFromUkraine"]
[Black "Bob2pen"]
[Result "0-1"]
[WhiteElo "1071"]
[BlackElo "1853"]
[TimeControl "300"]
[EndTime "7:34:47 PDT"]
[Termination "Bob2pen won by resignation"]

1. e4 {[%clk 0:04:55.1]} 1... e6 {[%clk 0:04:58.6]} 2. d4 {[%clk 0:04:53.7]}
2... d5 {[%clk 0:04:57.8]} 3. exd5 {[%clk 0:04:53.6]} 3... exd5 {[%clk
0:04:56.9]} 4. Nf3 {[%clk 0:04:53.1]} 4... Bd6 {[%clk 0:04:55.2]} 5. Be2 {[%clk
0:04:48.2]} 5... Ne7 {[%clk 0:04:53.7]} 6. O-O {[%clk 0:04:46.8]} 6... Nbc6
{[%clk 0:04:52.8]} 7. Nc3 {[%clk 0:04:43.8]} 7... Bg4 {[%clk 0:04:50.7]} 8. h3
{[%clk 0:04:41.6]} 8... Bh5 {[%clk 0:04:49.2]} 9. Re1 {[%clk 0:04:36.1]} 9...
O-O {[%clk 0:04:46.5]} 10. Bg5 {[%clk 0:04:27.2]} 10... f6 {[%clk 0:04:42.5]}
11. Bh4 {[%clk 0:04:22.2]} 11... Nf5 {[%clk 0:04:40.2]} 12. Bg3 {[%clk
0:04:13.5]} 12... Nxg3 {[%clk 0:04:35.2]} 13. fxg3 {[%clk 0:04:12.7]} 13... Bxg3
{[%clk 0:04:33.9]} 14. Rf1 {[%clk 0:04:09]} 14... Re8 {[%clk 0:04:29.9]} 15. Qd3
{[%clk 0:04:02.1]} 15... Bg6 {[%clk 0:04:25.7]} 16. Qd1 {[%clk 0:03:57.2]} 16...
a6 {[%clk 0:04:17]} 17. Bd3 {[%clk 0:03:53.8]} 17... Qd6 {[%clk 0:04:08.7]} 18.
Bxg6 {[%clk 0:03:44.2]} 18... hxg6 {[%clk 0:04:07.2]} 19. Qd3 {[%clk 0:03:23.2]}
19... f5 {[%clk 0:04:05.5]} 0-1

[Event "Live Chess"]
[Site "Chess.com"]
[Date "2023.05.21"]
[Round "-"]
[White "raminguy"]
[Black "wot-not"]
[Result "1-0"]
[WhiteElo "1956"]
[BlackElo "1527"]
[TimeControl "300"]
[EndTime "7:34:53 PDT"]
[Termination "raminguy won by resignation"]

1. d4 {[%clk 0:04:59.4]} 1... Nf6 {[%clk 0:04:56]} 2. Nc3 {[%clk 0:04:58.3]}
2... g6 {[%clk 0:04:54.2]} 3. Bf4 {[%clk 0:04:57.3]} 3... c5 {[%clk 0:04:52.8]}
4. d5 {[%clk 0:04:55.4]} 4... d6 {[%clk 0:04:51.4]} 5. Qd2 {[%clk 0:04:54.4]}
5... e5 {[%clk 0:04:50.6]} 6. dxe6 {[%clk 0:04:52.6]} 6... Bxe6 {[%clk
0:04:49.3]} 7. O-O-O {[%clk 0:04:51.4]} 7... d5 {[%clk 0:04:40.3]} 8. e4 {[%clk
0:04:31]} 8... d4 {[%clk 0:04:38]} 9. Bb5+ {[%clk 0:04:29.7]} 9... Bd7 {[%clk
0:04:27.8]} 10. Bxd7+ {[%clk 0:04:21.8]} 10... Nbxd7 {[%clk 0:04:25.7]} 11. Nd5
{[%clk 0:04:14.2]} 11... Nxd5 {[%clk 0:04:17.7]} 12. exd5 {[%clk 0:04:12.3]}
12... Be7 {[%clk 0:04:06.6]} 13. d6 {[%clk 0:04:07.4]} 13... Bf6 {[%clk
0:04:02.5]} 14. Re1+ {[%clk 0:04:01.9]} 14... Kf8 {[%clk 0:03:58.3]} 15. Bh6+
{[%clk 0:04:00.2]} 15... Bg7 {[%clk 0:03:56.5]} 16. Nf3 {[%clk 0:03:52.9]} 16...
f6 {[%clk 0:03:51.2]} 17. Re7 {[%clk 0:03:45.5]} 17... Bxh6 {[%clk 0:03:48.5]}
18. Qxh6+ {[%clk 0:03:43.5]} 1-0

[Event "Live Chess"]
[Site "Chess.com"]
[Date "2023.05.21"]
[Round "-"]
[White "Biranidun"]
[Black "domrobson"]
[Result "1-0"]
[WhiteElo "2519"]
[BlackElo "1747"]
[TimeControl "300"]
[EndTime "7:34:55 PDT"]
[Termination "Biranidun won by resignation"]

1. e4 {[%clk 0:04:54.6]} 1... e5 {[%clk 0:04:59.2]} 2. Nf3 {[%clk 0:04:52.4]}
2... Nc6 {[%clk 0:04:58.5]} 3. Bc4 {[%clk 0:04:50.9]} 3... Bc5 {[%clk
0:04:56.2]} 4. c3 {[%clk 0:04:46.3]} 4... a6 {[%clk 0:04:54.7]} 5. O-O {[%clk
0:04:43.7]} 5... Ba7 {[%clk 0:04:54.3]} 6. d4 {[%clk 0:04:42.6]} 6... d6 {[%clk
0:04:46.5]} 7. dxe5 {[%clk 0:04:37.5]} 7... Bg4 {[%clk 0:04:42.9]} 8. exd6
{[%clk 0:04:34.6]} 8... Qxd6 {[%clk 0:04:38.6]} 9. Qxd6 {[%clk 0:04:32.8]} 9...
cxd6 {[%clk 0:04:37.4]} 10. Bf4 {[%clk 0:04:31.7]} 10... Bxf3 {[%clk 0:04:33.2]}
11. gxf3 {[%clk 0:04:29.9]} 11... Ne5 {[%clk 0:04:32.5]} 12. Be2 {[%clk
0:04:26]} 12... Nf6 {[%clk 0:04:30.4]} 13. Rd1 {[%clk 0:04:24.5]} 13... O-O-O
{[%clk 0:04:28.2]} 14. Nd2 {[%clk 0:04:22.6]} 14... h6 {[%clk 0:04:22.4]} 15.
Bg3 {[%clk 0:04:21.6]} 15... Nh5 {[%clk 0:04:18.4]} 16. f4 {[%clk 0:04:18.5]}
16... Nxg3 {[%clk 0:04:17.1]} 17. hxg3 {[%clk 0:04:18.4]} 17... Nd7 {[%clk
0:04:12.2]} 18. Nc4 {[%clk 0:04:17.6]} 18... Bb8 {[%clk 0:04:05.2]} 19. Nxd6+
{[%clk 0:04:16.4]} 19... Bxd6 {[%clk 0:04:03.6]} 20. Rxd6 {[%clk 0:04:16.3]}
20... Nf6 {[%clk 0:04:01.2]} 21. Rxd8+ {[%clk 0:04:13.8]} 1-0

[Event "Live Chess"]
[Site "Chess.com"]
[Date "2023.05.21"]
[Round "-"]
[White "mliszewski"]
[Black "TheSmoulderingMaster"]
[Result "0-1"]
[WhiteElo "1825"]
[BlackElo "1668"]
[TimeControl "300"]
[EndTime "7:34:59 PDT"]
[Termination "TheSmoulderingMaster won by resignation"]

1. d4 {[%clk 0:04:58.6]} 1... Nf6 {[%clk 0:04:58.3]} 2. Bg5 {[%clk 0:04:57.9]}
2... Ne4 {[%clk 0:04:57.1]} 3. h4 {[%clk 0:04:56.9]} 3... c5 {[%clk 0:04:53.9]}
4. d5 {[%clk 0:04:55.7]} 4... Qb6 {[%clk 0:04:51.7]} 5. Nc3 {[%clk 0:04:54.1]}
5... Qb4 {[%clk 0:04:45.9]} 6. Bd2 {[%clk 0:04:49.7]} 6... Nxd2 {[%clk
0:04:43.8]} 7. Qxd2 {[%clk 0:04:48.7]} 7... Na6 {[%clk 0:04:40.3]} 8. e3 {[%clk
0:04:43.4]} 8... g6 {[%clk 0:04:38.4]} 9. Nf3 {[%clk 0:04:41.8]} 9... Bg7 {[%clk
0:04:37.2]} 10. h5 {[%clk 0:04:34.2]} 10... Qxb2 {[%clk 0:04:34.8]} 11. Rb1
{[%clk 0:04:23.9]} 11... Qxc3 {[%clk 0:04:33.4]} 12. Qxc3 {[%clk 0:04:23.4]}
12... Bxc3+ {[%clk 0:04:31.8]} 13. Kd1 {[%clk 0:04:23.3]} 13... Nb4 {[%clk
0:04:26]} 14. a3 {[%clk 0:04:21]} 14... Nxd5 {[%clk 0:04:25]} 15. e4 {[%clk
0:04:19.3]} 15... Nf6 {[%clk 0:04:21.2]} 16. hxg6 {[%clk 0:04:18.2]} 16... fxg6
{[%clk 0:04:19.7]} 17. e5 {[%clk 0:04:17.1]} 17... Ng4 {[%clk 0:04:17.5]} 18.
Rh4 {[%clk 0:04:05.8]} 18... Nxf2+ {[%clk 0:04:14.7]} 19. Ke2 {[%clk 0:04:04.9]}
19... Bd4 {[%clk 0:03:47.3]} 20. c3 {[%clk 0:03:55]} 20... Bxc3 {[%clk
0:03:34.2]} 21. Kxf2 {[%clk 0:03:54.9]} 21... b6 {[%clk 0:03:31.9]} 22. Bd3
{[%clk 0:03:53.8]} 22... Bb7 {[%clk 0:03:30]} 23. Bxg6+ {[%clk 0:03:52.4]} 23...
Kd8 {[%clk 0:03:25.1]} 24. Rxh7 {[%clk 0:03:44.3]} 24... Rxh7 {[%clk 0:03:23.2]}
25. Bxh7 {[%clk 0:03:43.4]} 25... Bxf3 {[%clk 0:03:21.3]} 26. gxf3 {[%clk
0:03:42.1]} 26... Bxe5 {[%clk 0:03:21.2]} 27. Rd1 {[%clk 0:03:38.3]} 27... d6
{[%clk 0:03:15.8]} 28. Rg1 {[%clk 0:03:36.2]} 28... Kc7 {[%clk 0:02:49.8]} 29.
Ke3 {[%clk 0:03:30.1]} 29... Bd4+ {[%clk 0:02:34.5]} 0-1

[Event "Live Chess"]
[Site "Chess.com"]
[Date "2023.05.21"]
[Round "-"]
[White "stevochess11"]
[Black "Leonid_Starozhilov"]
[Result "0-1"]
[WhiteElo "1666"]
[BlackElo "2637"]
[TimeControl "300"]
[EndTime "7:35:00 PDT"]
[Termination "Leonid_Starozhilov won by checkmate"]

1. d4 {[%clk 0:04:56.9]} 1... Nf6 {[%clk 0:04:59.3]} 2. Nf3 {[%clk 0:04:56]}
2... g6 {[%clk 0:04:58.5]} 3. Nc3 {[%clk 0:04:54]} 3... d5 {[%clk 0:04:56.7]} 4.
Bf4 {[%clk 0:04:51.6]} 4... a6 {[%clk 0:04:55]} 5. e3 {[%clk 0:04:49.2]} 5...
Bg7 {[%clk 0:04:54]} 6. Be2 {[%clk 0:04:48]} 6... O-O {[%clk 0:04:51.6]} 7. Ne5
{[%clk 0:04:47]} 7... Nbd7 {[%clk 0:04:49.7]} 8. h4 {[%clk 0:04:46.1]} 8... h5
{[%clk 0:04:46.5]} 9. f3 {[%clk 0:04:42.9]} 9... c5 {[%clk 0:04:43.7]} 10. Qd2
{[%clk 0:04:38.9]} 10... b5 {[%clk 0:04:41.6]} 11. Nd1 {[%clk 0:04:35.4]} 11...
Bb7 {[%clk 0:04:17.2]} 12. Nf2 {[%clk 0:04:30.8]} 12... Rc8 {[%clk 0:04:15.1]}
13. g4 {[%clk 0:04:26.2]} 13... e6 {[%clk 0:04:12.1]} 14. O-O-O {[%clk
0:04:18.2]} 14... b4 {[%clk 0:04:09.3]} 15. Rdg1 {[%clk 0:04:13.4]} 15... Qa5
{[%clk 0:04:00.2]} 16. Kb1 {[%clk 0:04:09.5]} 16... c4 {[%clk 0:03:59]} 17. gxh5
{[%clk 0:04:07.1]} 17... Nxe5 {[%clk 0:03:55]} 18. Bxe5 {[%clk 0:04:00.6]} 18...
Nxh5 {[%clk 0:03:53.3]} 19. f4 {[%clk 0:03:52.2]} 19... c3 {[%clk 0:03:52.2]}
20. Qc1 {[%clk 0:03:48.6]} 20... b3 {[%clk 0:03:49.5]} 21. a3 {[%clk 0:03:41.2]}
21... cxb2 {[%clk 0:03:43.7]} 22. Qxb2 {[%clk 0:03:39.1]} 22... Rxc2 {[%clk
0:03:38.5]} 23. Qxb3 {[%clk 0:03:36.5]} 23... Rxe2 {[%clk 0:03:37.4]} 24. Ng4
{[%clk 0:03:27.7]} 24... Rc8 {[%clk 0:03:29.2]} 25. Bxg7 {[%clk 0:03:19.7]}
25... Kxg7 {[%clk 0:03:26.3]} 26. Qxb7 {[%clk 0:03:15.8]} 26... Qc3 {[%clk
0:03:21.2]} 27. Ne5 {[%clk 0:03:08.9]} 27... Qc2+ {[%clk 0:03:20.1]} 28. Ka1
{[%clk 0:03:07.2]} 28... Qa2# {[%clk 0:03:20]} 0-1

[Event "Live Chess"]
[Site "Chess.com"]
[Date "2023.05.21"]
[Round "-"]
[White "mach247"]
[Black "AttackingSnowLeopard"]
[Result "0-1"]
[WhiteElo "1331"]
[BlackElo "2156"]
[TimeControl "300"]
[EndTime "7:35:18 PDT"]
[Termination "AttackingSnowLeopard won by resignation"]

1. e4 {[%clk 0:04:59.5]} 1... e5 {[%clk 0:04:58.8]} 2. Nf3 {[%clk 0:04:59]} 2...
Nc6 {[%clk 0:04:57.4]} 3. Bc4 {[%clk 0:04:58.4]} 3... Bc5 {[%clk 0:04:55.1]} 4.
c3 {[%clk 0:04:57.9]} 4... Nf6 {[%clk 0:04:53.7]} 5. d3 {[%clk 0:04:57.6]} 5...
d6 {[%clk 0:04:52.7]} 6. O-O {[%clk 0:04:56.7]} 6... h6 {[%clk 0:04:52.2]} 7. h3
{[%clk 0:04:56]} 7... O-O {[%clk 0:04:51.2]} 8. a4 {[%clk 0:04:55.2]} 8... a5
{[%clk 0:04:46.4]} 9. Re1 {[%clk 0:04:48.6]} 9... Be6 {[%clk 0:04:45.4]} 10.
Bxe6 {[%clk 0:04:47.6]} 10... fxe6 {[%clk 0:04:45.3]} 11. Be3 {[%clk 0:04:47.1]}
11... Bxe3 {[%clk 0:04:43.7]} 12. Rxe3 {[%clk 0:04:46.7]} 12... Qe8 {[%clk
0:04:43]} 13. d4 {[%clk 0:04:35.9]} 13... exd4 {[%clk 0:04:40.9]} 14. cxd4
{[%clk 0:04:35.1]} 14... e5 {[%clk 0:04:40.5]} 15. Nc3 {[%clk 0:04:17.3]} 15...
exd4 {[%clk 0:04:27.7]} 16. Nxd4 {[%clk 0:04:15.9]} 16... Nxd4 {[%clk
0:04:27.3]} 17. Qxd4 {[%clk 0:04:14.3]} 17... Qe5 {[%clk 0:04:25.9]} 18. Qxe5
{[%clk 0:04:01]} 18... dxe5 {[%clk 0:04:25.8]} 19. Rd1 {[%clk 0:03:57.9]} 19...
c6 {[%clk 0:04:23.8]} 20. Red3 {[%clk 0:03:51]} 20... Ra6 {[%clk 0:04:21.8]} 21.
f3 {[%clk 0:03:24.9]} 21... Rb6 {[%clk 0:04:19.6]} 22. R1d2 {[%clk 0:03:24.3]}
22... Rb4 {[%clk 0:04:18.3]} 23. Kf2 {[%clk 0:02:54.2]} 23... Rf7 {[%clk
0:04:15.2]} 24. Rd8+ {[%clk 0:02:34.1]} 24... Kh7 {[%clk 0:04:11.7]} 25. Ra8
{[%clk 0:02:28]} 25... Nxe4+ {[%clk 0:03:53.4]} 26. Nxe4 {[%clk 0:02:23.3]}
26... Rxe4 {[%clk 0:03:53.3]} 27. Rxa5 {[%clk 0:02:17.3]} 27... Rb4 {[%clk
0:03:52.8]} 28. Rxe5 {[%clk 0:02:06.6]} 28... Rxa4 {[%clk 0:03:48.4]} 29. Re3
{[%clk 0:02:03.4]} 29... Rb4 {[%clk 0:03:47.2]} 30. Rde2 {[%clk 0:01:54.4]}
30... Rf5 {[%clk 0:03:40.4]} 31. Kg3 {[%clk 0:01:48.2]} 31... Rfb5 {[%clk
0:03:38.5]} 32. Re7 {[%clk 0:01:42.9]} 32... Rxb2 {[%clk 0:03:36.4]} 33. R2e3
{[%clk 0:01:36.5]} 33... Rg5+ {[%clk 0:03:32.5]} 34. Kf4 {[%clk 0:01:33.8]}
34... Rb4+ {[%clk 0:03:30.9]} 35. R3e4 {[%clk 0:01:30]} 35... Rxe4+ {[%clk
0:03:29.6]} 36. Rxe4 {[%clk 0:01:29.4]} 36... Rxg2 {[%clk 0:03:28.1]} 37. Rb4
{[%clk 0:01:28.8]} 37... b5 {[%clk 0:03:26.7]} 38. Re4 {[%clk 0:01:26.4]} 38...
Rg5 {[%clk 0:03:22.8]} 39. Re6 {[%clk 0:01:24.6]} 39... c5 {[%clk 0:03:22.3]}
40. Rb6 {[%clk 0:01:23.6]} 40... b4 {[%clk 0:03:20.8]} 41. Rb5 {[%clk
0:01:20.8]} 41... Rd5 {[%clk 0:03:16.8]} 42. Ke4 {[%clk 0:01:18.5]} 42... Rh5
{[%clk 0:03:15.7]} 43. h4 {[%clk 0:01:14.3]} 43... Rxh4+ {[%clk 0:03:14.5]} 44.
Ke3 {[%clk 0:01:13]} 44... Rc4 {[%clk 0:03:09.8]} 0-1

[Event "Live Chess"]
[Site "Chess.com"]
[Date "2023.05.21"]
[Round "-"]
[White "Conradical12"]
[Black "McSlash1"]
[Result "0-1"]
[WhiteElo "1533"]
[BlackElo "2009"]
[TimeControl "300"]
[EndTime "7:35:44 PDT"]
[Termination "McSlash1 won by resignation"]

1. e4 {[%clk 0:04:56.7]} 1... c5 {[%clk 0:04:59.5]} 2. Nf3 {[%clk 0:04:54.8]}
2... d6 {[%clk 0:04:58.4]} 3. Bc4 {[%clk 0:04:53.9]} 3... Nf6 {[%clk 0:04:57.8]}
4. O-O {[%clk 0:04:51.2]} 4... g6 {[%clk 0:04:57.3]} 5. d3 {[%clk 0:04:49.3]}
5... Bg7 {[%clk 0:04:56.2]} 6. Be3 {[%clk 0:04:48.5]} 6... O-O {[%clk
0:04:54.4]} 7. Qd2 {[%clk 0:04:48.1]} 7... Ng4 {[%clk 0:04:53.8]} 8. h3 {[%clk
0:04:44.6]} 8... Nxe3 {[%clk 0:04:52.9]} 9. fxe3 {[%clk 0:04:43.5]} 9... Nc6
{[%clk 0:04:52.3]} 10. Ng5 {[%clk 0:04:41.8]} 10... e6 {[%clk 0:04:47.7]} 11.
Nf3 {[%clk 0:04:36.6]} 11... Bxb2 {[%clk 0:04:44.2]} 12. Nc3 {[%clk 0:04:34.2]}
12... Bxa1 {[%clk 0:04:36.8]} 0-1

[Event "Live Chess"]
[Site "Chess.com"]
[Date "2023.05.21"]
[Round "-"]
[White "SupremeTactician"]
[Black "Ian-Morley"]
[Result "1-0"]
[WhiteElo "2195"]
[BlackElo "1090"]
[TimeControl "300"]
[EndTime "7:35:49 PDT"]
[Termination "SupremeTactician won by resignation"]

1. e4 {[%clk 0:04:59.4]} 1... d5 {[%clk 0:04:57.9]} 2. exd5 {[%clk 0:04:58.7]}
2... Qxd5 {[%clk 0:04:56.4]} 3. Nc3 {[%clk 0:04:58.6]} 3... Qd8 {[%clk
0:04:54.8]} 4. d4 {[%clk 0:04:57.9]} 4... Nf6 {[%clk 0:04:54.5]} 5. Nf3 {[%clk
0:04:57]} 5... Bf5 {[%clk 0:04:53.6]} 6. Bc4 {[%clk 0:04:56.5]} 6... e6 {[%clk
0:04:53.3]} 7. O-O {[%clk 0:04:55.7]} 7... Nbd7 {[%clk 0:04:52.6]} 8. Bg5 {[%clk
0:04:55.2]} 8... c6 {[%clk 0:04:51.9]} 9. Bb3 {[%clk 0:04:54.7]} 9... Be7 {[%clk
0:04:50.9]} 10. Re1 {[%clk 0:04:54]} 10... Nd5 {[%clk 0:04:50.5]} 11. Bxe7
{[%clk 0:04:50.5]} 11... Qxe7 {[%clk 0:04:48.9]} 12. Bxd5 {[%clk 0:04:48.7]}
12... cxd5 {[%clk 0:04:46.8]} 13. Nxd5 {[%clk 0:04:48.6]} 13... Qd8 {[%clk
0:04:35.7]} 14. Ne3 {[%clk 0:04:43]} 14... O-O {[%clk 0:04:33.3]} 15. Nxf5
{[%clk 0:04:42]} 15... exf5 {[%clk 0:04:32.4]} 16. Qd3 {[%clk 0:04:41.9]} 16...
Re8 {[%clk 0:04:31.8]} 17. Qxf5 {[%clk 0:04:40.3]} 17... Rxe1+ {[%clk
0:04:30.2]} 18. Rxe1 {[%clk 0:04:40.2]} 18... Nf6 {[%clk 0:04:26.2]} 19. c3
{[%clk 0:04:38.8]} 19... Qd7 {[%clk 0:04:23.1]} 20. Qxd7 {[%clk 0:04:37.3]}
20... Nxd7 {[%clk 0:04:22.1]} 21. Re7 {[%clk 0:04:37]} 21... Kf8 {[%clk
0:04:21.1]} 22. Rxd7 {[%clk 0:04:36.2]} 22... Re8 {[%clk 0:04:19.4]} 23. Kf1
{[%clk 0:04:35.3]} 23... f6 {[%clk 0:04:17.5]} 24. Rxb7 {[%clk 0:04:34.5]} 24...
a5 {[%clk 0:04:16.5]} 25. c4 {[%clk 0:04:31.1]} 25... Rc8 {[%clk 0:04:13.5]} 26.
c5 {[%clk 0:04:30.5]} 26... a4 {[%clk 0:04:13.1]} 27. Ke2 {[%clk 0:04:27.2]}
27... Rd8 {[%clk 0:04:10.9]} 28. Kd3 {[%clk 0:04:26.5]} 28... g5 {[%clk
0:04:09.2]} 29. Kc4 {[%clk 0:04:25.7]} 29... g4 {[%clk 0:04:08.5]} 30. Nh4
{[%clk 0:04:25]} 30... Re8 {[%clk 0:04:06.9]} 31. c6 {[%clk 0:04:24]} 31... Re2
{[%clk 0:04:05.9]} 32. Kd3 {[%clk 0:04:22.1]} 32... Rxb2 {[%clk 0:04:04.6]} 33.
Rxb2 {[%clk 0:04:20.6]} 1-0

[Event "Live Chess"]
[Site "Chess.com"]
[Date "2023.05.21"]
[Round "-"]
[White "Long1968"]
[Black "Ferrarifan27"]
[Result "0-1"]
[WhiteElo "956"]
[BlackElo "2046"]
[TimeControl "300"]
[EndTime "7:35:59 PDT"]
[Termination "Ferrarifan27 won on time"]

1. e4 {[%clk 0:04:58.1]} 1... e5 {[%clk 0:04:58.6]} 2. f4 {[%clk 0:04:55.9]}
2... exf4 {[%clk 0:04:56.4]} 3. Bc4 {[%clk 0:04:53.6]} 3... Qh4+ {[%clk
0:04:51.7]} 4. Kf1 {[%clk 0:04:50.3]} 4... Nf6 {[%clk 0:04:46.7]} 5. Nf3 {[%clk
0:04:45.4]} 5... Qh5 {[%clk 0:04:45.4]} 6. Qe1 {[%clk 0:04:27.4]} 6... Nc6
{[%clk 0:04:31.2]} 7. d4 {[%clk 0:04:10.6]} 7... d6 {[%clk 0:04:27.9]} 8. Bxf4
{[%clk 0:03:56.8]} 8... Bg4 {[%clk 0:04:25.8]} 9. Nbd2 {[%clk 0:03:06.3]} 9...
O-O-O {[%clk 0:04:21.3]} 10. h3 {[%clk 0:02:53.8]} 10... Bxf3 {[%clk 0:03:59.8]}
11. Nxf3 {[%clk 0:02:49.5]} 11... Re8 {[%clk 0:03:58.8]} 12. e5 {[%clk
0:02:27.1]} 12... dxe5 {[%clk 0:03:56.1]} 13. Nxe5 {[%clk 0:02:09.5]} 13... Nxe5
{[%clk 0:03:53.2]} 14. Bxe5 {[%clk 0:02:04.8]} 14... Nd7 {[%clk 0:03:50.3]} 15.
g4 {[%clk 0:01:44.8]} 15... Qg5 {[%clk 0:03:30.6]} 16. Qg3 {[%clk 0:01:17.7]}
16... Nxe5 {[%clk 0:03:26.1]} 17. dxe5 {[%clk 0:00:56.5]} 17... Rxe5 {[%clk
0:03:21.3]} 18. Qf2 {[%clk 0:00:13]} 18... Bc5 {[%clk 0:03:12.4]} 0-1

[Event "Live Chess"]
[Site "Chess.com"]
[Date "2023.05.21"]
[Round "-"]
[White "Ra2orLeaf"]
[Black "Crowded_House"]
[Result "0-1"]
[WhiteElo "1142"]
[BlackElo "1610"]
[TimeControl "300"]
[EndTime "7:36:07 PDT"]
[Termination "Crowded_House won by checkmate"]

1. d4 {[%clk 0:04:56.2]} 1... d5 {[%clk 0:04:57.4]} 2. Nf3 {[%clk 0:04:55.5]}
2... c6 {[%clk 0:04:56.2]} 3. Bf4 {[%clk 0:04:54.1]} 3... e6 {[%clk 0:04:54.6]}
4. e3 {[%clk 0:04:53.7]} 4... Bd6 {[%clk 0:04:54.1]} 5. Bd3 {[%clk 0:04:53.3]}
5... Bxf4 {[%clk 0:04:53.2]} 6. exf4 {[%clk 0:04:53.2]} 6... Nf6 {[%clk
0:04:52]} 7. O-O {[%clk 0:04:52.4]} 7... O-O {[%clk 0:04:49.8]} 8. Nbd2 {[%clk
0:04:49.8]} 8... Nbd7 {[%clk 0:04:45.3]} 9. Ne5 {[%clk 0:04:42.7]} 9... Qc7
{[%clk 0:04:39.8]} 10. Ndf3 {[%clk 0:04:41.2]} 10... b6 {[%clk 0:04:34.1]} 11.
c3 {[%clk 0:04:27.9]} 11... a5 {[%clk 0:04:32.8]} 12. a4 {[%clk 0:04:23.1]}
12... Ba6 {[%clk 0:04:31.8]} 13. Bxa6 {[%clk 0:04:15.1]} 13... Rxa6 {[%clk
0:04:30.2]} 14. Nxd7 {[%clk 0:04:13.7]} 14... Qxd7 {[%clk 0:04:26.9]} 15. Ne5
{[%clk 0:04:13.2]} 15... Qc7 {[%clk 0:04:22.7]} 16. Qd3 {[%clk 0:04:12]} 16...
Raa8 {[%clk 0:04:19.1]} 17. Rfe1 {[%clk 0:03:59.1]} 17... Nd7 {[%clk 0:04:18]}
18. Re3 {[%clk 0:03:57.1]} 18... Nxe5 {[%clk 0:04:15.9]} 19. fxe5 {[%clk
0:03:57]} 19... f6 {[%clk 0:04:12.2]} 20. Rh3 {[%clk 0:03:55.2]} 20... g6 {[%clk
0:04:08.7]} 21. Re1 {[%clk 0:03:49.4]} 21... fxe5 {[%clk 0:04:05]} 22. Rxe5
{[%clk 0:03:49.3]} 22... Rf5 {[%clk 0:04:03.6]} 23. Rxe6 {[%clk 0:03:33.9]}
23... Qf7 {[%clk 0:04:02.6]} 24. Re2 {[%clk 0:03:29.9]} 24... Rf8 {[%clk
0:03:58.4]} 25. f3 {[%clk 0:03:16.3]} 25... Re8 {[%clk 0:03:56.7]} 26. b3 {[%clk
0:02:39.7]} 26... Rf6 {[%clk 0:03:55.2]} 27. Rg3 {[%clk 0:02:19.3]} 27... Rfe6
{[%clk 0:03:51.1]} 28. Rxe6 {[%clk 0:02:12.5]} 28... Qxe6 {[%clk 0:03:45.8]} 29.
Kf2 {[%clk 0:02:09.3]} 29... Qe1# {[%clk 0:03:44.1]} 0-1

[Event "Live Chess"]
[Site "Chess.com"]
[Date "2023.05.21"]
[Round "-"]
[White "LiamClery2020"]
[Black "BillW-GrangerIN"]
[Result "1-0"]
[WhiteElo "1997"]
[BlackElo "369"]
[TimeControl "300"]
[EndTime "7:36:41 PDT"]
[Termination "LiamClery2020 won by checkmate"]

1. e4 {[%clk 0:04:59.4]} 1... e6 {[%clk 0:04:57.8]} 2. d4 {[%clk 0:04:56.6]}
2... d5 {[%clk 0:04:55.2]} 3. Nd2 {[%clk 0:04:55.2]} 3... c5 {[%clk 0:04:51.4]}
4. c3 {[%clk 0:04:54.2]} 4... Nc6 {[%clk 0:04:48]} 5. Ngf3 {[%clk 0:04:52.6]}
5... Nf6 {[%clk 0:04:35.6]} 6. e5 {[%clk 0:04:51.6]} 6... Ng4 {[%clk 0:04:20.3]}
7. Bd3 {[%clk 0:04:48.5]} 7... cxd4 {[%clk 0:04:17.1]} 8. cxd4 {[%clk
0:04:47.2]} 8... Bb4 {[%clk 0:03:58.9]} 9. O-O {[%clk 0:04:45.4]} 9... O-O
{[%clk 0:03:50.1]} 10. h3 {[%clk 0:04:41.7]} 10... Nh6 {[%clk 0:03:36.6]} 11.
Nb3 {[%clk 0:04:40.5]} 11... Qb6 {[%clk 0:03:11.5]} 12. Bxh6 {[%clk 0:04:38.7]}
12... Nxd4 {[%clk 0:02:55.7]} 13. Nfxd4 {[%clk 0:04:34.6]} 13... Bc5 {[%clk
0:02:37.1]} 14. Qg4 {[%clk 0:04:29.5]} 14... Bxd4 {[%clk 0:02:33]} 15. Qxg7#
{[%clk 0:04:27.7]} 1-0